bitfinex/quotes_SOLUSD_20250819
["timestamp","ask_amount","ask_price","bid_price","bid_amount"]
[1755614586694,64.45867597,178.61,178.56,19.05990503]
[1755614586990,10.0,178.72,178.57,0.67]
[1755614587187,17.45867597,178.67,178.62,17.45867597]
[1755614587388,17.45867597,178.7,178.64,17.45867597]
[1755614587581,46.88,178.69,178.66,17.45867597]
[1755614587786,50.34,178.79,178.66,17.45867597]
[1755614587787,46.88,178.68,178.66,17.45867597]
[1755614588085,46.88,178.68,178.63,0.67]
[1755614588408,16.833599,178.75,178.67,17.45867597]
[1755614588701,45.63615665,178.86,178.56,15.60180491]
[1755614588702,17.45867597,178.79,178.73,17.45867597]
[1755614588866,46.86,178.78,178.74,17.45867597]
[1755614589267,72.86,178.78,178.73,17.45867597]
[1755614589466,46.86,178.78,178.73,17.45867597]
[1755614589696,17.45867597,178.8,178.74,17.45867597]
[1755614590016,90.27867597,178.79,178.73,17.45867597]
[1755614590196,46.82,178.79,178.75,17.45867597]
[1755614590366,46.76,178.78,178.77,17.45867597]
[1755614591003,17.45867597,178.81,178.75,0.67]
[1755614591171,46.76,178.8,178.75,17.45867597]
[1755614591379,46.76,178.8,178.77,17.45867597]
[1755614591590,46.76,178.8,178.75,0.67]
[1755614591886,17.45867597,178.76,178.7,0.67]
[1755614592192,64.19867597,178.75,178.69,17.45867597]
[1755614592514,17.45867597,178.73,178.67,18.12867597]
[1755614592680,46.74,178.72,178.69,17.45867597]
[1755614592882,46.74,178.72,178.68,17.45867597]
[1755614593713,46.74,178.72,178.71,17.45867597]
[1755614593918,46.7,178.72,178.71,18.12867597]
[1755614595188,46.7,178.72,178.71,17.45867597]
[1755614595392,46.7,178.72,178.71,18.12867597]
[1755614595592,0.03,178.82,178.71,18.12867597]
[1755614595792,46.56,178.78,178.72,0.67]
[1755614596021,46.56,178.78,178.77,17.45867597]
[1755614596182,0.03,178.82,178.77,18.12867597]
[1755614596391,0.03,178.82,178.81,17.45867597]
[1755614596806,0.03,178.84,178.81,17.45867597]
[1755614597027,0.03,178.84,178.83,17.45867597]
[1755614597221,46.88,178.9,178.82,0.67]
[1755614597222,46.88,178.9,178.86,17.45867597]
[1755614597425,46.88,178.9,178.86,0.67]
[1755614597590,46.88,178.9,178.86,17.45867597]
[1755614597792,46.88,178.9,178.86,18.12867597]
[1755614598191,46.88,178.9,178.83,0.67]
[1755614598393,46.88,178.9,178.85,17.45867597]
[1755614598586,0.68,178.89,178.84,17.45867597]
[1755614598801,0.68,178.89,178.82,17.45867597]
[1755614598802,17.45867597,178.88,178.82,17.45867597]
[1755614599006,18.33867597,178.87,178.81,17.45867597]
[1755614599205,17.45867597,178.86,178.68,13.99128318]
[1755614599409,17.45867597,178.86,178.8,17.45867597]
[1755614599837,17.45867597,178.86,178.75,0.67]
[1755614600014,0.88,178.87,178.8,17.45867597]
[1755614600338,17.45867597,178.84,178.78,17.45867597]
[1755614600636,64.21867597,178.83,178.77,17.45867597]
[1755614600834,17.45867597,178.81,178.75,17.45867597]
[1755614601005,46.76,178.83,178.67,17.51867597]
[1755614601209,46.72,178.82,178.81,17.45867597]
[1755614601735,46.72,178.82,178.81,18.12867597]
[1755614601941,46.72,178.82,178.81,17.45867597]
[1755614602131,46.72,178.82,178.71,13.59559401]
[1755614602310,46.72,178.82,178.79,17.45867597]
[1755614602506,46.72,178.82,178.8,17.45867597]
[1755614602706,46.72,178.82,178.81,17.45867597]
[1755614603416,46.64,178.84,178.81,17.45867597]
[1755614603744,46.64,178.84,178.83,17.45867597]
[1755614604544,0.2,178.87,178.83,18.12867597]
[1755614604838,46.56,178.93,178.86,17.45867597]
[1755614605047,46.56,178.93,178.9,17.45867597]
[1755614606925,46.56,178.93,178.85,0.67]
[1755614607132,46.56,178.93,178.9,17.45867597]
[1755614607726,0.71,178.91,178.87,17.45867597]
[1755614607929,0.71,178.91,178.88,17.45867597]
[1755614608131,0.03,178.91,178.9,17.45867597]
[1755614608343,46.45,178.91,178.9,17.45867597]
[1755614608550,46.45,178.91,178.84,0.67]
[1755614608823,17.45867597,178.9,178.84,17.45867597]
[1755614609017,26.0,178.87,178.75,16.810961]
[1755614609223,63.85867597,178.86,178.8,17.45867597]
[1755614609627,46.4,178.86,178.82,17.45867597]
[1755614609832,46.4,178.86,178.78,0.67]
[1755614610069,46.4,178.86,178.81,17.45867597]
[1755614610458,46.4,178.86,178.82,17.45867597]
[1755614610627,46.4,178.86,178.83,17.45867597]
[1755614611020,46.4,178.86,178.78,0.67]
[1755614611226,46.4,178.86,178.83,17.45867597]
[1755614611426,46.4,178.86,178.81,17.45867597]
[1755614611647,0.68,178.85,178.8,17.45867597]
[1755614611836,44.13867597,178.84,178.78,17.45867597]
[1755614612021,26.68,178.84,178.77,17.45867597]
[1755614612244,26.68,178.84,178.79,17.45867597]
[1755614612934,18.13867597,178.83,178.77,17.45867597]
[1755614613758,17.45867597,178.82,178.77,17.45867597]
[1755614613975,17.45867597,178.79,178.74,17.45867597]
[1755614614152,46.3,178.78,178.76,17.45867597]
[1755614614343,46.3,178.78,178.73,0.72]
[1755614614543,46.3,178.78,178.77,17.45867597]
[1755614615676,46.96,178.78,178.69,0.72]
[1755614615844,46.96,178.78,178.76,17.45867597]
[1755614615845,46.3,178.78,178.76,17.45867597]
[1755614616044,46.3,178.78,178.77,17.45867597]
[1755614616466,26.0,178.81,178.77,17.45867597]
[1755614616661,46.3,178.8,178.79,17.45867597]
[1755614616861,46.34,178.8,178.79,17.45867597]
[1755614617252,46.34,178.8,178.78,17.45867597]
[1755614617593,26.0,178.77,178.71,17.45867597]
[1755614617749,46.34,178.76,178.71,17.45867597]
[1755614618077,46.34,178.76,178.67,0.78]
[1755614618078,0.66,178.89,178.75,17.45867597]
[1755614618244,0.66,178.89,178.7,26.0]
[1755614618245,0.66,178.89,178.76,0.72]
[1755614618445,0.66,178.89,178.85,17.45867597]
[1755614618658,47.66,178.88,178.86,17.45867597]
[1755614618876,48.32,178.88,178.86,17.45867597]
[1755614619059,26.0,178.87,178.86,17.45867597]
[1755614619244,47.66,178.88,178.72,13.59559401]
[1755614619445,47.66,178.88,178.72,19.19093868]
[1755614619757,26.0,178.85,178.73,0.72]
[1755614619947,43.45867597,178.84,178.78,17.45867597]
[1755614620153,48.26,178.83,178.73,0.72]
[1755614620467,48.26,178.83,178.67,26.06]
[1755614620468,26.0,178.79,178.76,17.45867597]
[1755614620664,26.0,178.82,178.78,17.45867597]
[1755614620866,0.66,178.87,178.81,17.45867597]
[1755614621067,26.0,178.83,178.8,17.45867597]
[1755614621262,0.66,178.82,178.77,17.45867597]
[1755614621471,47.6,178.81,178.77,17.45867597]
[1755614621784,18.11867597,178.8,178.75,17.45867597]
[1755614621973,26.0,178.77,178.73,17.45867597]
[1755614622176,47.56,178.76,178.73,17.45867597]
[1755614622785,65.01867597,178.76,178.7,17.45867597]
[1755614622996,47.56,178.76,178.74,17.45867597]
[1755614623181,47.56,178.76,178.69,0.72]
[1755614623182,47.56,178.76,178.72,17.45867597]
[1755614623491,18.11867597,178.75,178.7,17.45867597]
[1755614623658,47.56,178.76,178.73,17.45867597]
[1755614623858,26.0,178.8,178.75,17.45867597]
[1755614624166,47.48,178.79,178.77,17.45867597]
[1755614624371,47.48,178.79,178.76,17.45867597]
[1755614624896,26.0,178.76,178.71,17.45867597]
[1755614625181,26.0,178.76,178.67,0.06]
[1755614625182,47.5,178.75,178.7,17.45867597]
[1755614625352,47.5,178.75,178.67,0.06]
[1755614625555,47.5,178.75,178.71,17.45867597]
[1755614625783,47.5,178.75,178.74,17.45867597]
[1755614627098,47.5,178.75,178.71,0.72]
[1755614627260,0.66,178.81,178.67,17.51867597]
[1755614627261,26.0,178.8,178.74,17.45867597]
[1755614627461,26.0,178.8,178.74,0.72]
[1755614627462,47.3,178.79,178.74,0.72]
[1755614627682,40.34,178.83,178.78,17.45867597]
[1755614627979,47.28,178.82,178.78,0.72]
[1755614628164,47.28,178.82,178.79,0.72]
[1755614628372,47.28,178.82,178.76,0.72]
[1755614628975,47.28,178.82,178.68,13.59559401]
[1755614629285,47.28,178.82,178.81,17.45867597]
[1755614629488,47.28,178.82,178.78,17.45867597]
[1755614629659,47.28,178.82,178.79,17.45867597]
[1755614629859,66.34,178.83,178.81,17.45867597]
[1755614629860,40.34,178.83,178.81,17.45867597]
[1755614630059,40.34,178.83,178.82,17.45867597]
[1755614630295,47.22,178.84,178.82,18.17867597]
[1755614630592,47.22,178.84,178.83,18.17867597]
[1755614630964,47.22,178.84,178.83,17.45867597]
[1755614631287,47.22,178.84,178.83,18.17867597]
[1755614632491,0.03,178.91,178.83,18.17867597]
[1755614632782,47.1,178.89,178.83,0.72]
[1755614633996,47.1,178.89,178.87,17.45867597]
[1755614634168,47.32,178.89,178.8,0.72]
[1755614634370,47.1,178.89,178.85,17.45867597]
[1755614634588,0.22,178.88,178.77,0.72]
[1755614634894,0.22,178.88,178.83,17.45867597]
[1755614635075,0.22,178.87,178.77,0.72]
[1755614635598,47.1,178.89,178.84,17.45867597]
[1755614635772,26.0,178.86,178.83,17.45867597]
[1755614635974,0.22,178.85,178.75,0.72]
[1755614636299,43.45867597,178.81,178.7,0.78]
[1755614636598,26.0,178.81,178.73,0.72]
[1755614636965,26.0,178.81,178.78,17.45867597]
[1755614637285,26.0,178.81,178.7,0.06]
[1755614637286,0.22,178.8,178.7,0.06]
[1755614637491,26.0,178.76,178.73,17.45867597]
[1755614637665,26.0,178.78,178.75,17.45867597]
[1755614637863,46.86,178.77,178.76,17.45867597]
[1755614638061,0.43,178.82,178.76,17.45867597]
[1755614638293,26.0,178.78,178.76,17.45867597]
[1755614638466,26.0,178.78,178.77,17.45867597]
[1755614638998,46.8,178.78,178.76,17.45867597]
[1755614639292,46.8,178.78,178.75,17.45867597]
[1755614639494,46.8,178.78,178.7,0.06]
[1755614639709,17.45867597,178.76,178.7,0.06]
[1755614639881,26.0,178.75,178.73,17.45867597]
[1755614640070,46.76,178.74,178.73,17.45867597]
[1755614640270,46.74,178.74,178.73,18.17867597]
[1755614640470,46.72,178.76,178.73,18.17867597]
[1755614640801,16.82416,178.83,178.74,0.72]
[1755614640973,46.72,178.82,178.74,0.72]
[1755614641174,64.60867597,178.82,178.76,17.45867597]
[1755614641392,0.43,178.81,178.76,17.45867597]
[1755614641594,26.43,178.81,178.78,17.45867597]
[1755614641768,26.0,178.81,178.78,17.45867597]
[1755614641970,0.43,178.8,178.73,0.72]
[1755614642270,0.43,178.8,178.71,0.72]
[1755614642617,17.45867597,178.75,178.7,0.06]
[1755614642775,43.45867597,178.71,178.7,0.06]
[1755614643098,90.11867597,178.71,178.7,0.06]
[1755614643416,72.66,178.71,178.7,0.06]
[1755614643582,0.68,178.75,178.7,0.06]
[1755614643924,72.76,178.74,178.7,0.06]
[1755614644114,26.0,178.71,178.7,0.06]
[1755614644329,43.45867597,178.71,178.7,0.06]
[1755614644630,26.0,178.71,178.7,0.06]
[1755614644924,46.88,178.71,178.7,0.06]
[1755614645500,10.0,178.81,178.7,0.06]
[1755614645501,0.68,178.83,178.7,18.18867597]
[1755614645836,0.68,178.86,178.82,17.45867597]
[1755614646147,17.45867597,178.83,178.77,17.45867597]
[1755614646429,47.66,178.82,178.73,0.67]
[1755614646598,47.66,178.82,178.78,17.45867597]
[1755614646807,46.98,178.82,178.79,17.45867597]
[1755614647118,17.38956684,178.9,178.79,17.45867597]
[1755614647119,0.68,178.88,178.81,17.45867597]
[1755614647424,63.799444,178.87,178.85,17.45867597]
[1755614647607,63.799444,178.87,178.83,17.45867597]
[1755614647805,17.45867597,178.86,178.8,17.45867597]
[1755614648011,47.66,178.87,178.83,17.45867597]
[1755614648228,18.13867597,178.86,178.76,13.59559401]
[1755614648529,26.0,178.84,178.77,0.67]
[1755614648733,26.0,178.83,178.8,17.45867597]
[1755614648947,26.0,178.8,178.73,0.67]
[1755614649230,26.0,178.78,178.74,17.45867597]
[1755614649522,46.98,178.77,178.76,17.45867597]
[1755614649731,46.98,178.77,178.75,17.45867597]
[1755614649899,26.0,178.73,178.7,0.06]
[1755614650097,17.45867597,178.71,178.7,0.06]
[1755614650308,26.0,178.71,178.7,0.06]
[1755614651099,18.13867597,178.71,178.7,0.06]
[1755614651416,26.0,178.68,178.65,0.06]
[1755614651748,26.0,178.64,178.55,19.66101845]
[1755614651935,26.0,178.59,178.55,2.20234248]
[1755614652147,47.08,178.59,178.58,17.45867597]
[1755614652326,0.48,178.75,178.59,13.59559401]
[1755614652517,26.0,178.7,178.67,17.45867597]
[1755614652724,43.45867597,178.7,178.64,17.45867597]
[1755614652930,0.48,178.75,178.67,17.45867597]
[1755614653149,26.0,178.7,178.68,17.45867597]
[1755614653314,47.16,178.69,178.65,0.67]
[1755614653640,17.45867597,178.79,178.69,0.67]
[1755614653812,47.14,178.75,178.73,17.45867597]
[1755614654015,47.14,178.78,178.74,18.12867597]
[1755614654214,47.14,178.81,178.77,17.45867597]
[1755614654443,0.03,178.84,178.8,17.45867597]
[1755614654646,16.821329,178.86,178.83,17.45867597]
[1755614654826,0.03,178.89,178.85,17.45867597]
[1755614655015,0.03,178.89,178.88,17.45867597]
[1755614655227,0.03,178.93,178.9,17.45867597]
[1755614655433,0.03,178.93,178.92,17.45867597]
[1755614655634,0.03,178.93,178.86,14.26559401]
[1755614655817,0.03,178.93,178.92,17.45867597]
[1755614656309,0.03,178.93,178.92,18.12867597]
[1755614656526,47.38,178.98,178.93,13.59559401]
[1755614656729,47.38,178.98,178.97,17.45867597]
[1755614656937,47.38,178.98,178.94,0.67]
[1755614657125,47.38,178.98,178.97,17.45867597]
[1755614657328,0.2,179.05,178.97,18.12867597]
[1755614657667,0.2,179.05,179.04,17.45867597]
[1755614658517,0.2,179.05,179.02,0.67]
[1755614658713,0.2,179.05,179.03,17.45867597]
[1755614658956,0.2,179.05,179.04,17.45867597]
[1755614659161,0.2,179.05,178.98,0.67]
[1755614659357,0.2,179.05,179.02,17.45867597]
[1755614659561,0.77,179.05,179.0,17.45867597]
[1755614659748,17.45867597,179.04,178.98,17.45867597]
[1755614659943,26.0,179.03,178.94,0.67]
[1755614660430,26.0,179.0,178.97,17.45867597]
[1755614660635,73.58,179.0,178.95,17.45867597]
[1755614660863,26.0,178.96,178.9,0.67]
[1755614661052,26.0,178.95,178.92,17.45867597]
[1755614661255,47.54,178.94,178.87,0.67]
[1755614661846,47.54,178.94,178.93,17.45867597]
[1755614662063,26.0,179.04,178.93,18.12867597]
[1755614662231,47.48,179.0,178.97,17.45867597]
[1755614662437,47.48,179.0,178.96,17.45867597]
[1755614662869,26.0,179.01,178.98,17.45867597]
[1755614663041,47.86,179.02,179.0,17.45867597]
[1755614663240,47.86,179.02,179.01,17.45867597]
[1755614663570,47.86,179.02,179.01,18.12867597]
[1755614663752,47.86,179.02,178.97,0.67]
[1755614663946,47.86,179.02,179.01,17.45867597]
[1755614664558,47.86,179.02,178.94,0.67]
[1755614664936,47.86,179.02,178.98,17.45867597]
[1755614665142,0.2,179.05,179.01,17.45867597]
[1755614665344,47.82,179.04,179.02,0.67]
[1755614665549,47.82,179.04,179.03,17.45867597]
[1755614665970,47.82,179.04,178.99,0.67]
[1755614666359,47.82,179.04,178.94,0.67]
[1755614666360,26.0,179.01,178.94,0.67]
[1755614666550,26.0,179.01,178.97,17.45867597]
[1755614666754,26.0,179.01,178.98,17.45867597]
[1755614666959,47.78,179.01,179.0,17.45867597]
[1755614667673,47.78,179.01,178.92,0.67]
[1755614667840,47.78,179.01,178.92,17.45867597]
[1755614667841,43.45867597,178.98,178.92,17.45867597]
[1755614668038,43.45867597,178.98,178.93,17.45867597]
[1755614668259,43.45867597,178.98,178.88,0.67]
[1755614668260,26.57,178.98,178.88,0.67]
[1755614668462,26.57,178.98,178.93,17.45867597]
[1755614668638,26.0,178.96,178.88,0.67]
[1755614668838,47.76,178.95,178.89,0.67]
[1755614669041,47.74,178.94,178.89,0.67]
[1755614669269,47.74,178.94,178.9,0.67]
[1755614669487,26.0,178.99,178.9,0.67]
[1755614669644,47.74,178.98,178.91,0.67]
[1755614670063,47.74,178.98,178.95,17.45867597]
[1755614670246,47.74,178.98,178.93,17.45867597]
[1755614670446,47.74,178.98,178.94,17.45867597]
[1755614670674,17.45867597,178.97,178.9,0.06]
[1755614670978,17.45867597,178.97,178.9,17.51867597]
[1755614670979,43.45867597,178.96,178.9,17.51867597]
[1755614671358,26.0,178.96,178.91,17.45867597]
[1755614671546,44.02867597,178.96,178.9,17.51867597]
[1755614671746,26.57,178.96,178.9,0.06]
[1755614671984,26.0,178.93,178.9,0.06]
[1755614672166,47.6,178.92,178.9,0.06]
[1755614672374,16.810019,178.98,178.91,31.72426998]
[1755614672565,16.810019,178.98,178.92,0.67]
[1755614672876,0.03,179.01,178.97,17.45867597]
[1755614673039,48.06,179.0,178.98,17.45867597]
[1755614673243,48.06,179.0,178.92,0.67]
[1755614673482,48.06,179.0,178.98,17.45867597]
[1755614673675,48.06,179.0,178.97,17.45867597]
[1755614674082,48.06,179.0,178.98,17.45867597]
[1755614674272,48.06,179.0,178.99,17.45867597]
[1755614674674,48.06,179.0,178.98,17.45867597]
[1755614675202,48.06,179.0,178.94,0.68]
[1755614675358,48.06,179.0,178.96,17.45867597]
[1755614675557,48.63,179.0,178.9,0.74]
[1755614675766,65.51867597,179.0,178.94,17.45867597]
[1755614675987,65.51867597,179.0,178.9,0.74]
[1755614675988,48.06,179.0,178.95,17.45867597]
[1755614676491,48.06,179.0,178.93,17.45867597]
[1755614676492,44.02867597,178.99,178.93,17.45867597]
[1755614676864,44.02867597,178.99,178.9,0.74]
[1755614677059,26.0,178.99,178.96,17.45867597]
[1755614677296,26.0,178.97,178.96,17.45867597]
[1755614677787,48.06,179.0,178.96,18.13867597]
[1755614677992,48.06,179.0,178.99,17.45867597]
[1755614678786,0.03,179.01,178.99,18.13867597]
[1755614678992,0.03,179.01,179.0,17.45867597]
[1755614679155,0.03,179.01,178.99,1.396137]
[1755614679565,26.03,179.01,178.99,1.396137]
[1755614679960,26.03,179.01,179.0,17.45867597]
[1755614680363,0.03,179.01,179.0,17.45867597]
[1755614680565,0.03,179.01,179.0,18.13867597]
[1755614681170,0.03,179.01,179.0,17.45867597]
[1755614682013,0.03,179.01,178.97,0.68]
[1755614682186,0.03,179.01,178.91,19.18474041]
[1755614682187,0.03,179.01,179.0,17.45867597]
[1755614682382,0.03,179.01,178.98,0.68]
[1755614682582,0.03,179.01,179.0,17.45867597]
[1755614682982,0.03,179.03,179.0,18.13867597]
[1755614683178,0.03,179.04,179.02,17.45867597]
[1755614683383,0.03,179.04,179.03,17.45867597]
[1755614683913,0.03,179.07,179.03,18.13867597]
[1755614684215,0.03,179.07,179.05,17.45867597]
[1755614684814,0.03,179.07,179.05,18.13867597]
[1755614685017,0.03,179.07,179.05,31.73426998]
[1755614685593,0.03,179.07,179.05,18.13867597]
[1755614687290,0.03,179.07,179.05,31.73426998]
[1755614687492,0.03,179.07,179.06,13.59559401]
[1755614687725,16.801546,179.08,179.07,17.45867597]
[1755614687894,16.801546,179.08,179.07,18.13867597]
[1755614688218,0.03,179.13,179.09,13.59559401]
[1755614688415,0.03,179.13,179.11,31.05426998]
[1755614688714,0.03,179.13,179.12,13.59559401]
[1755614689030,0.03,179.13,179.12,18.13867597]
[1755614689313,0.03,179.13,179.12,31.73426998]
[1755614689519,0.03,179.13,179.12,37.31711946]
[1755614690120,0.03,179.15,179.13,13.59559401]
[1755614690320,50.29237584,179.23,179.13,14.27559401]
[1755614690498,50.29237584,179.23,179.22,17.45867597]
[1755614690988,50.29237584,179.23,179.21,17.45867597]
[1755614691189,50.29237584,179.23,179.17,0.68]
[1755614691420,0.7,179.22,179.19,17.45867597]
[1755614691709,50.29237584,179.23,179.2,17.45867597]
[1755614692090,50.29237584,179.23,179.19,17.45867597]
[1755614692291,50.29237584,179.23,179.22,17.45867597]
[1755614692497,2.91237584,179.23,179.21,17.45867597]
[1755614692790,2.91237584,179.23,179.15,0.68]
[1755614692991,3.61237584,179.23,179.19,17.45867597]
[1755614693206,18.15867597,179.22,179.12,0.68]
[1755614693416,17.45867597,179.19,179.14,17.45867597]
[1755614693714,17.45867597,179.17,179.09,0.68]
[1755614693915,0.7,179.18,179.1,17.45867597]
[1755614694100,0.7,179.16,179.1,17.45867597]
[1755614694419,26.0,179.19,179.15,17.45867597]
[1755614694610,47.14,179.22,179.18,17.45867597]
[1755614694816,18.15867597,179.21,179.1,0.68]
[1755614695112,17.45867597,179.19,179.1,0.68]
[1755614695315,26.0,179.19,179.1,17.45867597]
[1755614695523,17.45867597,179.15,179.06,2.075592]
[1755614695822,26.0,179.16,179.06,2.075592]
[1755614696020,18.15867597,179.15,179.09,17.45867597]
[1755614696221,0.7,179.14,179.06,18.85426797]
[1755614696397,17.45867597,179.13,179.06,1.395592]
[1755614696718,17.45867597,179.13,179.08,17.45867597]
[1755614696919,18.15867597,179.13,179.08,17.45867597]
[1755614697128,17.45867597,179.13,179.07,17.45867597]
[1755614697300,0.7,179.12,179.06,1.395592]
[1755614697615,0.7,179.12,179.07,17.45867597]
[1755614697817,0.7,179.11,179.06,1.395592]
[1755614698031,17.45867597,179.13,179.07,17.45867597]
[1755614698214,17.45867597,179.13,179.08,17.45867597]
[1755614698519,0.7,179.13,179.08,17.45867597]
[1755614698720,18.15867597,179.13,179.07,17.45867597]
[1755614698907,17.45867597,179.1,179.06,1.395592]
[1755614699420,0.7,179.1,179.06,1.395592]
[1755614699790,17.45867597,179.09,179.06,1.395592]
[1755614699997,0.7,179.09,179.06,1.395592]
[1755614700194,26.0,179.12,179.08,17.45867597]
[1755614700505,73.6,179.14,179.08,17.45867597]
[1755614700705,17.45867597,179.12,179.07,17.45867597]
[1755614700910,17.45867597,179.12,179.06,1.395592]
[1755614701129,17.45867597,179.11,179.06,1.395592]
[1755614701423,0.7,179.1,179.06,18.85426797]
[1755614701600,0.7,179.1,179.06,1.395592]
[1755614701929,0.7,179.13,179.08,17.45867597]
[1755614702118,43.45867597,179.11,179.06,1.395592]
[1755614702309,0.7,179.09,179.06,1.395592]
[1755614702510,64.35867597,179.14,179.08,17.45867597]
[1755614702816,46.9,179.14,179.09,17.45867597]
[1755614703126,46.9,179.14,179.06,2.075592]
[1755614703297,65.01867597,179.14,179.09,17.45867597]
[1755614703634,17.45867597,179.1,179.06,1.395592]
[1755614703800,17.45867597,179.08,179.06,1.395592]
[1755614704122,17.45867597,179.07,179.06,1.395592]
[1755614704320,0.66,179.07,179.06,1.395592]
[1755614704528,18.11867597,179.07,179.06,1.395592]
[1755614705905,41.71426998,179.07,179.06,1.395592]
[1755614706103,26.0,179.03,179.01,16.851202]
[1755614706312,64.81867597,179.02,179.01,16.851202]
[1755614706512,0.66,179.06,179.01,16.851202]
[1755614706692,72.68,179.05,179.01,16.851202]
[1755614706893,17.45867597,179.04,179.01,16.851202]
[1755614707097,90.79867597,179.05,179.01,16.851202]
[1755614707316,46.68,179.05,179.01,34.97987797]
[1755614707522,17.45867597,179.03,179.01,16.851202]
[1755614707706,26.0,179.03,179.02,0.06]
[1755614708095,0.66,179.07,179.02,0.06]
[1755614708299,46.66,179.03,179.02,0.06]
[1755614708830,46.66,179.03,179.02,18.18867597]
[1755614709048,17.45867597,179.09,179.02,18.18867597]
[1755614709198,46.62,179.06,179.04,17.45867597]
[1755614709402,46.62,179.06,179.05,17.45867597]
[1755614709904,46.62,179.06,179.05,18.12867597]
[1755614710217,46.56,179.1,179.05,18.12867597]
[1755614710397,46.56,179.1,179.07,17.45867597]
[1755614710600,46.56,179.1,179.07,0.67]
[1755614710797,46.56,179.1,179.07,18.12867597]
[1755614710998,46.56,179.1,179.04,0.67]
[1755614711301,46.56,179.1,179.05,17.45867597]
[1755614711726,46.56,179.1,179.06,18.12867597]
[1755614711913,46.56,179.1,179.02,0.06]
[1755614711914,46.56,179.1,179.03,0.67]
[1755614712117,46.56,179.1,179.05,17.45867597]
[1755614712321,46.56,179.1,179.08,17.45867597]
[1755614712520,46.56,179.1,179.09,17.45867597]
[1755614712723,46.56,179.1,179.09,18.12867597]
[1755614713017,46.44,179.14,179.09,18.12867597]
[1755614713230,17.45867597,179.11,179.05,0.67]
[1755614713546,63.85867597,179.1,179.05,17.45867597]
[1755614713726,63.85867597,179.1,179.02,0.73]
[1755614713727,46.4,179.1,179.02,0.73]
[1755614713914,63.85867597,179.1,179.04,17.45867597]
[1755614714236,17.45867597,179.08,179.02,18.18867597]
[1755614714441,17.45867597,179.07,179.02,0.06]
[1755614714742,17.45867597,179.05,179.02,0.06]
[1755614714950,17.45867597,179.03,179.02,0.06]
[1755614715275,26.0,179.0,178.99,0.06]
[1755614715422,89.79867597,179.0,178.99,0.06]
[1755614715609,72.34,179.0,178.99,0.06]
[1755614715811,89.79867597,179.0,178.99,0.06]
[1755614716715,0.66,179.08,178.99,17.51867597]
[1755614716914,43.45867597,179.05,178.99,17.51867597]
[1755614717133,17.45867597,179.02,178.99,0.06]
[1755614717336,46.32,179.03,178.99,0.06]
[1755614717515,46.32,179.03,179.01,17.45867597]
[1755614717845,46.32,179.03,179.0,0.67]
[1755614718014,46.32,179.03,178.99,17.51867597]
[1755614718214,46.32,179.03,179.0,17.45867597]
[1755614718930,46.32,179.03,179.01,0.67]
[1755614719144,46.32,179.03,179.0,17.45867597]
[1755614719372,46.32,179.03,178.99,17.51867597]
[1755614719569,46.32,179.03,178.99,0.06]
[1755614719735,63.77867597,179.03,178.99,0.06]
[1755614720072,46.32,179.03,178.99,0.06]
[1755614720964,46.26,179.05,179.02,17.45867597]
[1755614721171,46.26,179.05,179.0,0.67]
[1755614721375,46.26,179.05,178.99,0.06]
[1755614721539,17.45867597,179.03,178.99,0.06]